Workbook

Sheet Dry Sorbent Injection
A1: Four Boilers Dry Sorbent Injection System - Chena Power Plant
A3: Variable | B3: Designation | C3: Units | D3: Value | E3: Calculation
A4: Unit Size (Gross) | B4: A | C4: (MW) | D4: 49.7 | E4: <-- User Input (Conservative assumption based on total heat input of 497 MMBtu/hour)
A5: Retrofit Factor | B5: B | D5: 1.5 | E5: <-- User Input (An "average" retrofit has a factor of 1.0. Site-specific considerations provided by Aurora in 12/22/17 BACT Addendum)
A6: Gross Heat Rate | B6: C | C6: (Btu/kWh) | D6: 10000 | E6: <-- User Input
A7: SO2 Rate | B7: D | C7: (lb/MMBtu) | D7: 0.39 | E7: <-- User Input
A8: Type of Coal | B8: E | D8: sub-bituminous | E8: <-- User Input
A9: Particulate Capture | B9: F | D9: Baghouse | E9: <-- User Input
A10: Milled Trona | B10: G | D10: TRUE | E10: Based on in-line milling equipment
A11: Removal Target | B11: H | C11: (%) | D11: 80 | E11: Maximum Removal Targets: Unmilled Trona with an ESP = 65% Milled Trona with an ESP = 80% Unmilled Trona with a Baghouse = 80% Milled Trona with Baghouse = 90%
A12: Heat Input | B12: J | C12: (Btu/hr) | D12: =D4*D6*1000 -> 497000000 | E12: A*C*1000
A13: NSR | B13: K | D13: =IF(D11<40,0.016*D11,0.208*EXP(0.0281*D11)) -> 1.9695061 | E13: Unmilled Trona with an ESP = if(H<40,0.0350*H,0.352e^(0.0345*H)) Milled Trona with an ESP = if(H<40,0.0270*H,0.353e^(0.0280*H)) Unmilled Trona with an BGH = if(H<40,0.0215*H,0.295e^(0.0267*H)) Milled Trona with an BGH = if(H<40,0.0160*H,0.208e^(0.0281*H))
A14: Trona Feed Rate | B14: M | C14: (ton/hr) | D14: =(0.0000012011)*D13*D4*D6*D7 -> 0.4585191652 | E14: (1.2011x10^-06)*K*A*C*D
A15: Sorbent Waste Rate | B15: N | C15: (ton/hr) | D15: =(0.7035-0.00073696*D11/D13)*D14 -> 0.3088425465 | E15: (0.7035-0.00073696*H/K)*M Based on a final reaction product of Na2SO4 and unreacted dry sorbent as Na2CO3.
A16: Fly Ash Waste Rate | B16: P | C16: (ton/hr) | D16: =(D12/1000)*0.07*(1-0.6)/(2*7560) -> 0.9203703704 | E16: (A*C)*Ash incoal*(1-Boiler Ash Removal)/(2*HHV) For Bituminous Coal: Ash in Coal = 0.12; Boiler Ash Removal = 0.2, HHV = 11,000 For PRB Coal: Ash in Coal = 0.06; Boiler Ash Removal = 0.2, HHV = 8,400 For Lignite Coal: Ash in Coal = 0.08; Boiler Ash Removal = 0.2, HHV = 7,200 <-- User Input (Usibelli Coal: Ash in Coal = 0.07; Boiler Ash Removal = 0.6; HHV = 7,560)
A17: Aux Power | B17: Q | C17: (%) | D17: =D14*20/D4 -> 0.1845147546 | E17: =if Milled Trona M*20/A else M*18/A
A18: Trona Cost | B18: R | C18: ($/ton) | D18: 451 | E18: <-- User Input (based on delivered price paid by Healy)
A19: Waste Disposal Cost | B19: S | C19: ($/ton) | D19: 50
A20: Aux Power Cost | B20: T | C20: ($/kWh) | D20: 0.21 | E20: <-- User Input (http://www.gvea.com/rates/rates)
A21: Operating Labor Rate | B21: U | C21: ($/hr) | D21: 60 | E21: <-- User Input (Labor cost including all benefits)
A22: IPM Model - Updates to Cost and Performance for APC Technologies - Dry Sorbent Injection for SO2 Control Cost Development Methodology, March 2013, prepared by Sargent & Lundy LLC for USEPA. https://www.epa.gov/sites/production/files/2015-07/documents/append5_4.pdf
A23: Capital Cost Calculation (2012 dollars) | E23: Comments
A25: Includes - Equipment, installation, building, foundations, electrical, and a retrofit difficulty factor of 1.5
A27: Base Module (BM) ($) | C27: = | D27: =IF(D14>25,(750000*D5*D14),(7516000*D5*D14^0.284)) -> 9034488.273 | E27: Base DSI module includes all equipment from unloading to injection
A28: Unmilled Trona = if(M>25 then (682,000*B*M) else 6,833,000*B*(M^0.284)
A29: Milled Trona = if(M>25 then (750,000*B*M) else 7,516,000*B*(M^0.284)
A30: BM ($/kW) | C30: = | D30: =D27/(D4*1000) -> 181.7804481 | E30: Base module cost per kW
A32: Total Project Cost
A34: A1 = 10% of BM | C34: = | D34: =0.1*$D$27 -> 903448.8273 | E34: Engineering and construction management costs (CC Manual)
A35: A2 = 10% of BM | C35: = | D35: =0.1*$D$27 -> 903448.8273 | E35: Labor adjustment for 6 x 10 hour shift premium, per diem, etc. (CC Manual)
A36: A3 = 10% of BM | C36: = | D36: =0.1*$D$27 -> 903448.8273 | E36: Contractor profit and fees (CC Manual)
A38: CECC ($) - Excludes Owner's Costs = BM + A1 + A2 + A3 | C38: = | D38: =D27+D34+D35+D36 -> 11744834.75 | E38: Capital, engineering, and construction costs subtotal
A39: CECC ($/kW) - Excludes Owner's Costs | C39: = | D39: =D38/(D4*1000) -> 236.3145826 | E39: Capital, engineering, and construction costst subtotal per kW
A41: B1 = 5% of CECC | C41: = | D41: =0.05*D38 -> 587241.7377 | E41: Owner's costs including all "home office" costs (owner's engineering, management, and procurement activities)
A43: TPC ($) - Includes Owners Costs = CECC + B1 | C43: = | D43: =D38+D41 -> 12332076.49 | E43: Total project cost without Allowance for Funds Used During Construction (AFUDC)
A44: TPC ($/kW) - Include Owner's Costs | C44: = | D44: =D43/(D4*1000) -> 248.1303117 | E44: Total project cost per kW without AFUDC
A46: B2 = 0% of (CECC + B1) | C46: = | E46: AFUDC (Zero for less than 1 year engineering and construction cycle)
A48: TPC ($) = CECC + B1 + B2 | C48: = | D48: =D43+D46 -> 12332076.49 | E48: Total project cost
A49: TPC ($/kW) | C49: = | D49: =D48/(D4*1000) -> 248.1303117 | E49: Total project cost per kW
A57: Dry Sorbent Injection System - Chena Power Plant
A60: Direct Annual Costs
A61: Fixed Operating and Maintenance (O&M) Cost
A63: FOMO ($/kW yr) = (1 additional operators)*(2080)*U/(A*1000) | C63: = | D63: =1*2080*D21/(D4*1000) -> 2.511066398 | E63: Fixed O&M additional operating labor costs
A64: FOMM ($/kW yr) = BM*0.01/(B*A*1000) | C64: = | D64: =D27*0.01/(D5*D4*1000) -> 1.211869654 | E64: Fixed O&M additional maintenance material and labor costs
A65: FOMA ($/kW yr) = 0.03*(FOMO+0.4*FOMM) | C65: = | D65: =0.03*(D63+0.4*D64) -> 0.0898744278 | E65: Fixed O&M additional administrative labor costs
A67: FOM ($/kW yr) = FOMO + FOMM + FOMA | C67: = | D67: =D63+D64+D65 -> 3.812810481 | E67: Total Fixed O&M costs ($/kW yr)
A69: Variable O&M Cost
A71: VOMR ($/MWh) = M*R/A | C71: = | D71: =D14*D18/D4 -> 4.160807716 | E71: Variable O&M costs for Trona reagent
A72: VOMW ($/MWh) = (N+P)*S/A | C72: = | D72: =(D15+D16)*D19/D4 -> 1.236632713 | E72: Variable O&M costs for waste disposal that includes both the sorbent and the fly ash waste not removed prior to the sorbent injection
A73: VOMP ($/MWh) = Q*T*10 | C73: = | D73: =D17*D20*10 -> 0.3874809846 | E73: Variable O&M costs for additional auxiliary power required (Refer to Aux Power % above)
A75: VOM ($/MWh) = VOMR + VOMW + VOMP | C75: = | D75: =D71+D72+D73 -> 5.784921414 | E75: Total Variable O&M Costs ($/MW yr)
A77: Indirect Annual Costs
A79: Overhead (60% of total labor and material costs) | C79: = | D79: =0.6*D67*D4*1000 -> 113698.0085 | E79: CC Manual
A80: Administrative charges (2% of total capital investment) | C80: = | D80: =0.02*D48 -> 246641.5299 | E80: CC Manual
A81: Property tax (1% of total capital investment) | C81: = | D81: =0.01*D48 -> 123320.7649 | E81: CC Manual
A82: Insurance (1% of total capital investment) | C82: = | D82: =0.01*D48 -> 123320.7649 | E82: CC Manual
A83: Capital Recovery Factor (CRF) = [ i (1+i)n ] / [ (1+i)n - 1 ]
A84: i = Interest rate (%) | B84: 7
A85: n = Equipment life (years) | B85: 15
A86: CRF = | B86: =((B84/100)*((1+(B84/100))^B85))/(((1+(B84/100))^B85)-1) -> 0.1097946247 | C86: = | D86: =B86*D48 -> 1353995.71 | E86: CC Manual
A88: TOTAL INDIRECT ANNUAL OPERATING COSTS | C88: = | D88: =SUM(D79:D86) -> 1960976.779
A90: TOTAL ANNUALIZED OPERATING COSTS (2012 $) | C90: = | D90: =D67*D4*1000+D75*D4*8760+D88 -> 4669066.265
A93: Composite CE Index for 2012 (cost year of equation) | C93: = | D93: 584.6
A94: Composite CE Index for 2016 (cost year of review) | C94: = | D94: 536.4
A96: TOTAL ANNUALIZED OPERATING COSTS (2016 $) | C96: = | D96: =D90*D94/D93 -> 4284103.908
A99: TOTAL UNCONTROLLED SO2 EMISSIONS, tons | C99: = | D99: =D7*(D12/1000000)*8760/2000 -> 848.9754
A100: SO2 REMOVAL EFFICIENCY, % | C100: = | D100: =D11 -> 80
A101: TOTAL SO2 REMOVED, tons | C101: = | D101: =D99*D100/100 -> 679.18032
A103: SO2 COST-EFFECTIVENESS, $/ton removed | C103: = | D103: =D96/D101 -> 6307.75625

Sheet Spray Dry Absorber
A5: Four Boilers Spray Dry Absorber - Chena Power Plant
A7: Variable | B7: Designation | C7: Units | D7: Value | E7: Calculation
A8: Unit Size (Gross) | B8: A | C8: (MW) | D8: 49.7 | E8: <-- User Input (Conservative assumption based on total heat input of 497 MMBtu/hour)
A9: Retrofit Factor | B9: B | D9: 1.5 | E9: <-- User Input (An "average" retrofit has a factor of 1.0. Site-specific considerations provided by Aurora in 12/22/17 BACT Addendum)
A10: Gross Heat Rate | B10: C | C10: (Btu/kWh) | D10: 10000 | E10: <-- User Input
A11: SO2 Rate | B11: D | C11: (lb/MMBtu) | D11: 0.39 | E11: <-- User Input (SDA FGD Estimation only valid up to 3lb/MMBtu SO2 Rate)
A12: Type of Coal | B12: E | D12: sub-bituminous | E12: <-- User Input
A13: Coal Factor | B13: F | D13: 1.05 | E13: Bituminous = 1, Sub-Bituminous=1.05, Lignite=1.07
A14: Heat Rate Factor | B14: G | D14: =D10/10000 -> 1 | E14: C/10000
A15: Heat Input | B15: H | C15: (Btu/hr) | D15: =D8*D10*1000 -> 497000000 | E15: A*C*1000
A16: Lime Rate | B16: K | C16: (ton/hr) | D16: =(0.6702*(D11^2)+13.42*D11)*D8*D14/2000 -> 0.1325930749 | E16: (0.6702*(D^2)+13.42*D)*A*G/2000 (Based on 95% SO2 Removal)
A17: Waste Rate | B17: L | C17: (ton/hr) | D17: =(0.8016*(D11^2)+31.1917*D11)*D8*D14/2000 -> 0.305324156 | E17: (0.8016*(D^2)+31.1917*D)*A*G/2000
A18: Aux Power | B18: M | C18: (%) | D18: =(0.000547*(D11^2)+0.00649*D11+1.3)*D13*D14 -> 1.367745014 | E18: (0.000547*(D^2)+0.00649*D+1.3)*F*G Should be used for model input
A19: Makeup Water Rate | B19: N | C19: (1000 gph) | D19: =(0.04898*(D11^2)+0.5925*D11+55.11)*D8*D13*D14/1000 -> 2.88836277 | E19: (0.04898*(D^2)+0.5925*D+55.11)*A*F*G/1000
A20: Lime Cost | B20: P | C20: ($/ton) | D20: 80 | E20: <-- User Input (https://www3.epa.gov/ttncatc1/dir1/ffdg.pdf)
A21: Waste Disposal Cost | B21: Q | C21: ($/ton) | D21: 30 | E21: <-- User Input (https://www3.epa.gov/ttncatc1/dir1/ffdg.pdf)
A22: Aux Power Cost | B22: R | C22: ($/kWh) | D22: 0.21 | E22: <-- User Input (http://www.gvea.com/rates/rates)
A23: Makeup Water Cost | B23: S | C23: ($/1000 gal) | D23: 7.17 | E23: <-- User Input (http://www.newsminer.com/water-rates/article_11a2ba10-c211-562e-8da9-87dd16a7b104.html)
A24: Operating Labor Rate | B24: T | C24: ($/hr) | D24: 60 | E24: Labor cost including all benefits
A25: IPM Model - Updates to Cost and Performance for APC Technologies - SDA FGD for SO2 Control Cost Development Methodology, March 2013, prepared by Sargent & Lundy LLC for US EPA. https://www.epa.gov/sites/production/files/2015-07/documents/chapter_5_appendix_5-1b_sda_fgd.pdf
A26: Capital Cost Calculation (2012 dollars) | E26: Comments
A28: Includes - Equipment, installation, building, foundations, electrical, and a retrofit difficulty factor of 1.5
A30: BMR ($) = if(A>600 then (A*92,000) else 566,000*(A^0.716))*B*(F*G)^0.6*(D/4)^0.01 | C30: = | D30: =IF(D8>600,(D8*92000),(566000*(D8^0.716))*D9*(D13*D14)^0.6*(D11/4)^0.01) -> 13999176.53 | E30: Base module absorber island cost
A32: BMF ($) = if(A>600 then (A*48,700) else 300,000*(A^0.716))*B*(D*G)^0.2 | C32: = | D32: =IF(D8>600,(D8*48700),(300000*(D8^0.716))*D9*(D11*D14)^0.2) -> 6109653.907 | E32: Base module reagent preparation and waste recycle/handling cost
A34: BMB ($) = if(A>600 then (A*129,900) else 799,000*(A^0.716))*B*(F*G)^0.4 | C34: = | D34: =IF(D8>600,(D8*129900),(799000*(D8^0.716))*D9*(D13*D14)^0.4) -> 20031106.15 | E34: Base module balance of plan costs inlcuding: ID or booster fans, piping, ductwork, electrical, etc.
A36: BM ($) = BMR + BMF + BMB | C36: = | D36: =D30+D32+D34 -> 40139936.59 | E36: Total base module cost including retrofit factor
A37: BM ($/kW) | C37: = | D37: =D36/(D8*1000) -> 807.6445994 | E37: Base module cost per kW
A39: Total Project Cost
A41: A1 = 10% of BM | C41: = | D41: =0.1*$D$36 -> 4013993.659 | E41: Engineering and construction management costs
A42: A2 = 10% of BM | C42: = | D42: =0.1*$D$36 -> 4013993.659 | E42: Labor adjustment for 6 x 10 hour shift premium, per diem, etc.
A43: A3 = 10% of BM | C43: = | D43: =0.1*$D$36 -> 4013993.659 | E43: Contractor profit and fees
A45: CECC ($) - Excludes Owner's Costs = BM + A1 + A2 + A3 | C45: = | D45: =D36+D41+D42+D43 -> 52181917.57 | E45: Capital, engineering, and construction costs subtotal
A46: CECC ($/kW) - Excludes Owner's Costs = | C46: = | D46: =D45/(D8*1000) -> 1049.937979 | E46: Capital, engineering, and construction costst subtotal per kW
A48: B1 = 5% of CECC | C48: = | D48: =0.05*D45 -> 2609095.878 | E48: Owner's costs including all "home office" costs (owner's engineering, management, and procurement activities)
A50: TPC ($) - Includes Owners Costs = CECC + B1 | C50: = | D50: =D45+D48 -> 54791013.44 | E50: Total project cost without Allowance for Funds Used During Construction (AFUDC)
A51: TPC ($/kW) - Include Owner's Costs = | C51: = | D51: =D50/(D8*1000) -> 1102.434878 | E51: Total project cost per kW without AFUDC
A53: B2 = 10% of (CECC + B1) | C53: = | D53: =0.1*D50 -> 5479101.344 | E53: AFUDC (based on a 3 year engineering and construction cycle)
A55: TPC ($) - Includes Owner's Costs and AFUDC = CECC + B1 + B2 | C55: = | D55: =D45+D48+D53 -> 60270114.79 | E55: Total project cost
A56: TPC ($/kW) - Includes Owner's Costs and AFUDC = | C56: = | D56: =D55/(D8*1000) -> 1212.678366 | E56: Total project cost per kW
A71: Spray Dry Absorber - Chena Power Plant
A74: Direct Annual Costs
A75: Fixed Operating and Maintenance (O&M) Cost
A77: FOMO ($/kW yr) = (4 additional operators)*(2080)*T/(A*1000) | C77: = | D77: =8*2080*D24/(D8*1000) -> 20.08853119 | E77: Fixed O&M additional operating labor costs
A78: FOMM ($/kW yr) = BM*0.015/(B*A*1000) | C78: = | D78: =D36*0.015/(D9*D8*1000) -> 8.076445994 | E78: Fixed O&M additional maintenance material and labor costs
A79: FOMA ($/kW yr) = 0.03*(FOMO+0.4*FOMM) | C79: = | D79: =0.03*(D77+0.4*D78) -> 0.6995732875 | E79: Fixed O&M additional administrative labor costs
A81: FOM ($/kW yr) = FOMO + FOMM + FOMA | C81: = | D81: =D77+D78+D79 -> 28.86455047 | E81: Total Fixed O&M costs
A83: Variable O&M Cost
A85: VOMR ($/MWh) = K*P/A | C85: = | D85: =D16*D20/D8 -> 0.2134294968 | E85: Variable O&M costs for lime reagent
A87: VOMW ($/MWh) = L*Q/A | C87: = | D87: =D17*D21/D8 -> 0.1843002954 | E87: Variable O&M costs for waste disposal
A89: VOMP ($/MWh) = M*R*10 | C89: = | D89: =D18*D22*10 -> 2.872264529 | E89: Variable O&M costs for additional auxiliary power required including additional fan power (Refer to Aux Power % above)
A91: VOMM ($/MWh) = N*S/A | C91: = | D91: =D19*D23/D8 -> 0.4166913694 | E91: Variable O&M costs for makeup water
A93: VOM ($/MWh) = VOMR + VOMW + VOMP + VOMM | C93: = | D93: =D85+D87+D89+D91 -> 3.68668569 | E93: Total Variable O&M Costs
A95: Indirect Annual Costs
A97: Overhead (60% of total labor and material costs) | C97: = | D97: =0.6*D81*D8*1000 -> 860740.895 | E97: CC Manual
A98: Administrative charges (2% of total capital investment) | C98: = | D98: =0.02*D55 -> 1205402.296 | E98: CC Manual
A99: Property tax (1% of total capital investment) | C99: = | D99: =0.01*D55 -> 602701.1479 | E99: CC Manual
A100: Insurance (1% of total capital investment) | C100: = | D100: =0.01*D55 -> 602701.1479 | E100: CC Manual
A101: Capital Recovery Factor (CRF) = [ i (1+i)n ] / [ (1+i)n - 1 ]
A102: i = Interest rate (%) | B102: 7
A103: n = Equipment life (years) | B103: 15
A104: CRF = | B104: =((B102/100)*((1+(B102/100))^B103))/(((1+(B102/100))^B103)-1) -> 0.1097946247 | C104: = | D104: =B104*D55 -> 6617334.634 | E104: CC Manual
A106: TOTAL INDIRECT ANNUAL OPERATING COSTS | C106: = | D106: =SUM(D97:D104) -> 9888880.12
A108: TOTAL ANNUALIZED OPERATING COSTS (2012 $) | C108: = | D108: =D81*D8*1000+D93*D8*8760+D106 -> 12928528
A111: Composite CE Index for 2012 (cost year of equation) | C111: = | D111: 584.6
A112: Composite CE Index for 2016 (cost year of review) | C112: = | D112: 536.4
A114: TOTAL ANNUALIZED OPERATING COSTS (2016 $) | C114: = | D114: =D108*D112/D111 -> 11862576.84
A117: TOTAL UNCONTROLLED SO2 EMISSIONS, tons | C117: = | D117: =D11*(D15/1000000)*8760/2000 -> 848.9754
A118: SO2 REMOVAL EFFICIENCY, % | C118: = | D118: 90
A119: TOTAL SO2 REMOVED, tons | C119: = | D119: =D117*D118/100 -> 764.07786
A121: SO2 COST-EFFECTIVENESS, $/ton removed | C121: = | D121: =D114/D119 -> 15525.35083

Sheet Wet Scrubber
A3: Four Boilers Wet Scrubber - Chena Power Plant
A5: Variable | B5: Designation | C5: Units | D5: Value | E5: Calculation
A6: Unit Size (Gross) | B6: A | C6: (MW) | D6: 49.7 | E6: <-- User Input (Conservative assumption based on a total heat input of 497 MMBtu/hr)
A7: Retrofit Factor | B7: B | D7: 1.5 | E7: <-- User Input (An "average" retrofit has a factor of 1.0) Sargent and Lundy has a drop down menu for selection of an additional waste water treatment plant facility, but no capital or operational cost are implemented so it is not reproduced here.
A8: Gross Heat Rate | B8: C | C8: (Btu/kWh) | D8: 10000 | E8: <-- User Input
A9: SO2 Rate | B9: D | C9: (lb/MMBtu) | D9: 0.39 | E9: <-- User Input
A10: Type of Coal | B10: E | D10: sub-bituminous | E10: <-- User Input
A11: Coal Factor | B11: F | D11: 1.05 | E11: Bituminous = 1, Sub-Bituminous = 1.05, Lignite = 1.07
A12: Heat Rate Factor | B12: G | D12: =D8/10000 -> 1 | E12: C/10000
A13: Heat Input | B13: H | C13: (Btu/hr) | D13: =D6*D8*1000 -> 497000000 | E13: A*C*1000
A14: Limestone Rate | B14: K | C14: (ton/hr) | D14: =17.52*D6*D9*D12/2000 -> 0.16979508 | E14: 17.52*A*D*G/2000
A15: Waste Rate | B15: L | C15: (ton/hr) | D15: =1.811*D14 -> 0.3074988899 | E15: 1.811*K
A16: Aux Power | B16: M | C16: (%) | D16: =(1.05*EXP(0.155*D9))*D11*D12 -> 1.171201715 | E16: (1.05e^(0.155*D))*F*G
A17: Makeup Water Rate | B17: N | C17: (1000 gph) | D17: =(1.674*D9+74.68)*D6*D11*D12/1000 -> 3.931245299 | E17: (1.674*D+74.68)*A*F*G/1000
A18: Limestone Cost | B18: P | C18: ($/ton) | D18: 20 | E18: <-- User Input (https://www3.epa.gov/ttncatc1/dir1/ffdg.pdf)
A19: Waste Disposal Cost | B19: Q | C19: ($/ton) | D19: 30 | E19: <-- User Input (https://www3.epa.gov/ttncatc1/dir1/ffdg.pdf)
A20: Aux Power Cost | B20: R | C20: ($/kWh) | D20: 0.21 | E20: <-- User Input (http://www.gvea.com/rates/rates)
A21: Makeup Water Cost | B21: S | C21: ($/1000 gal) | D21: 7.17 | E21: <-- User Input (http://www.newsminer.com/water-rates/article_11a2ba10-c211-562e-8da9-87dd16a7b104.html)
A22: Operating Labor Rate | B22: T | C22: ($/hr) | D22: 60 | E22: Labor cost including all benefits
A23: IPM Model - Updates to Cost and Performance for APC Technologies - Wet FGD for SO2 Control Cost Development Methodology, August 2010, prepared by Sargent & Lundy LLC for US EPA. https://www.epa.gov/sites/production/files/2015-07/documents/chapter_5_appendix_5-1a_wet_fgd.pdf
A24: Capital Cost Calculation (2012 dollars) | E24: Comments
A26: Includes - Equipment, installation, building, foundations, electrical, minor physical/chemical waste water treatment, and a retrofit difficulty factor of 1.5
A28: BMR ($) = 550,000*(B)*((F*G)^0.6)*((D/2)^0.02)*(A^0.716) | C28: = | D28: =550000*(D7)*((D11*D12)^0.6)*((D9/2)^0.02)*(D6^0.716) -> 13475950.11 | E28: Base absorber island cost
A30: BMF ($) = 190,000*(B)*((D*G)^0.3)*(A^0.716) | C30: = | D30: =190000*(D7)*((D9*D12)^0.3)*(D6^0.716) -> 3521724.806 | E30: Base reagent preparation cost
A32: BMW ($) = 100,000*(B)*((D*G)^0.45)*(A^0.716) | C32: = | D32: =100000*(D7)*((D9*D12)^0.45)*(D6^0.716) -> 1609390.771 | E32: Base waste handling cost
A34: BMB ($) = 1,010,000*(B)*((F*G)^0.4)*(A^0.716) | C34: = | D34: =1010000*(D7)*((D11*D12)^0.4)*(D6^0.716) -> 25320922.66 | E34: Base balance of plan cost including: ID or booster fans, new wet chimney, piping, ductwork, minor waste water treatment, etc…
A36: BMWW ($) = | C36: = | D36: 0 | E36: Base wastewater treatment facility, beyond minor physical/chemcial treatment
A38: Base Module (BM) ($) = BMR + BMF + BMW + BMB + BMWW | C38: = | D38: =D28+D30+D32+D34+D36 -> 43927988.35 | E38: Total base cost including retrofit factor
A39: BM ($/kW) | C39: = | D39: =D38/(D6*1000) -> 883.8629447 | E39: Base cost per kW
A41: Total Project Cost
A43: A1 = 10% of BM | C43: = | D43: =0.1*$D$38 -> 4392798.835 | E43: Engineering and construction management costs (CC Manual)
A44: A2 = 10% of BM | C44: = | D44: =0.1*$D$38 -> 4392798.835 | E44: Labor adjustment for 6 x 10 hour shift premium, per diem, etc. (CC Manual)
A45: A3 = 10% of BM | C45: = | D45: =0.1*$D$38 -> 4392798.835 | E45: Contractor profit and fees (CC Manual)
A47: CECC ($) - Excludes Owner's Costs = BM + A1 + A2 + A3 | C47: = | D47: =D38+D43+D44+D45 -> 57106384.86 | E47: Capital, engineering, and construction costs subtotal
A48: CECC ($/kW) - Excludes Owner's Costs = | C48: = | D48: =D47/(D6*1000) -> 1149.021828 | E48: Capital, engineering, and construction costst subtotal per kW
A50: B1 = 5% of CECC | C50: = | D50: =0.05*D47 -> 2855319.243 | E50: Owner's costs including all "home office" costs (owner's engineering, management, and procurement activities)
A52: TPC ($) - Includes Owners Costs = CECC + B1 | C52: = | D52: =D47+D50 -> 59961704.1 | E52: Total project cost without Allowance for Funds Used During Construction (AFUDC)
A53: TPC ($/kW) - Include Owner's Costs = | C53: = | D53: =D52/(D6*1000) -> 1206.47292 | E53: Total project cost per kW without AFUDC
A55: B2 = 10% of (CECC + B1) | C55: = | D55: =0.1*(D47+D50) -> 5996170.41 | E55: AFUDC (based on a 3 year engineering and construction cycle)
A57: TPC ($) - Includes Owner's Costs and AFUDC = CECC + B1 + B2 | C57: = | D57: =D52+D55 -> 65957874.51 | E57: Total project cost
A58: TPC ($/kW) - Includes Owner's Costs and AFUDC = | C58: = | D58: =D57/(D6*1000) -> 1327.120212 | E58: Total project cost per kW
A67: Wet Scrubber - Chena Power Plant
A70: Direct Annual Costs
A71: Fixed O&M Cost
A73: FOMO ($/kW yr) = (6 additional operators)*(2080)*T/(A*1000) | C73: = | D73: =6*2080*D22/(D6*1000) -> 15.06639839 | E73: Fixed O&M additional operating labor costs
A74: FOMM ($/kW yr) = BM*0.015/(B*A*1000) | C74: = | D74: =D38*0.015/(D7*D6*1000) -> 8.838629447 | E74: Fixed O&M additional maintenance material and labor costs
A75: FOMA ($/kW yr) = 0.03*(FOMO+0.4*FOMM) | C75: = | D75: =0.03*(D73+0.4*D74) -> 0.5580555051 | E75: Fixed O&M additional administrative labor costs
A76: FOMWW ($/kW yr) = | D76: 0 | E76: Fixed O&M costs for wastewater treatment facility
A78: FOM ($/kW yr) = FOMO + FOMM + FOMA + FOMWW | C78: = | D78: =D73+D74+D75+D76 -> 24.46308334 | E78: Total Fixed O&M costs ($/kW yr)
A80: Variable O&M Cost
A82: VOMR ($/MWh) = K*P/A | C82: = | D82: =D14*D18/D6 -> 0.068328 | E82: Variable O&M costs for limestone reagent
A84: VOMW ($/MWh) = L*Q/A | C84: = | D84: =D15*D19/D6 -> 0.185613012 | E84: Variable O&M costs for waste disposal
A86: VOMP ($/MWh) = M*R*10 | C86: = | D86: =D16*D20*10 -> 2.459523601 | E86: Variable O&M costs for additional auxiliary power required including additional fan power (Refer to Aux Power % above)
A88: VOMM ($/MWh) = N*S/A | C88: = | D88: =D17*D21/D6 -> 0.5671434365 | E88: Variable O&M costs for makeup water
A90: VOMWW ($/MWh) = | C90: = | D90: 0 | E90: Variable O&M costs for wastewater treatment facility
A92: VOM ($/MWh) = VOMR + VOMW + VOMP + VOMM + VOMWW | C92: = | D92: =D82+D84+D86+D88+D90 -> 3.28060805 | E92: Total Variable O&M Costs ($/MW yr)
A94: Indirect Annual Costs
A96: Overhead (60% of total labor and material costs) | C96: = | D96: =0.6*D78*D6*1000 -> 729489.1453 | E96: CC Manual
A97: Administrative charges (2% of total capital investment) | C97: = | D97: =0.02*D57 -> 1319157.49 | E97: CC Manual
A98: Property tax (1% of total capital investment) | C98: = | D98: =0.01*D57 -> 659578.7451 | E98: CC Manual
A99: Insurance (1% of total capital investment) | C99: = | D99: =0.01*D57 -> 659578.7451 | E99: CC Manual
A100: Capital Recovery Factor (CRF) = [ i (1+i)n ] / [ (1+i)n - 1 ]
A101: i = Interest rate (%) | B101: 7
A102: n = Equipment life (years) | B102: 15
A103: CRF = | B103: =((B101/100)*((1+(B101/100))^B102))/(((1+(B101/100))^B102)-1) -> 0.1097946247 | C103: = | D103: =B103*D57 -> 7241820.078 | E103: CC Manual
A105: TOTAL INDIRECT ANNUAL OPERATING COSTS | C105: = | D105: =SUM(D96:D103) -> 10609624.2
A107: TOTAL ANNUALIZED OPERATING COSTS (2012 $) | C107: = | D107: =D78*D6*1000+D92*D6*8760+D105 -> 13253724.33
A110: Composite CE Index for 2012 (cost year of equation) | C110: = | D110: 584.6
A111: Composite CE Index for 2016 (cost year of review) | C111: = | D111: 536.4
A113: TOTAL ANNUALIZED OPERATING COSTS (2016 $) | C113: = | D113: =D107*D111/D110 -> 12160960.88
A116: TOTAL UNCONTROLLED SO2 EMISSIONS, tons | C116: = | D116: =D9*(D13/1000000)*8760/2000 -> 848.9754
A117: SO2 REMOVAL EFFICIENCY, % | C117: = | D117: 99
A118: TOTAL SO2 REMOVED, tons | C118: = | D118: =D116*D117/100 -> 840.485646
A120: SO2 COST-EFFECTIVENESS, $/ton removed | C120: = | D120: =D113/D118 -> 14468.96915 | E120: Does not include costs associated with building and maintaining a wastewater treatment facility

Sheet ESRI_MAPINFO_SHEET (hidden)
